Cogmind - Beta 13 X1 @@@ ROGUE MODE // 2023.12.05 @ 22:32:00 Player: alice_fexa Result: Destroyed by Y-54 Guardian with Flak Gun Performance ------------- Evolutions (0) 0 Regions Visited (4) 800 Robots Destroyed (35) 175 Value Destroyed (710) 710 Prototype IDs (1) 20 Alien Tech Used (0) 0 Bonus (32) 32 TOTAL SCORE: 1737 Bonus ------- Follower Combat Kills 70 Friendly Fire -38 Cogmind --------- Core Integrity 0/250 Matter 265/300 Energy 230/250 System Corruption 1% Temperature Cool (18) Movement Treading (160) Location -7/Recycling Parts ------- > --- POWER (1) -------- Ion Engine > --- PROPULSION (2) --- Light Treads Medium Treads > --- UTILITY (2) ------ Large Storage Unit Makeshift Armor Plating > --- WEAPON (2) ------- Subdweller Laser Battle Rifle > --- INVENTORY (15) --- Light Nuclear Core Light Nuclear Core Wheel Scrap Engine Improved Heat Sink Medium Matter Pod (100) Structural Scanner Gatling Laser Barrage Gun Battle Cannon Battle Cannon Slug Cannon Grenade Launcher Grenade Launcher Peak State ------------ > --- POWER ------------ Ion Engine > --- PROPULSION ------- Light Treads Medium Treads > --- UTILITY ---------- Large Storage Unit Makeshift Armor Plating > --- WEAPON ----------- Subdweller Laser Battle Rifle > --- INVENTORY -------- Light Nuclear Core Light Nuclear Core Wheel Scrap Engine Improved Heat Sink Medium Matter Pod Structural Scanner Gatling Laser Barrage Gun Battle Cannon Battle Cannon Slug Cannon Grenade Launcher Grenade Launcher [Rating: 19] Favorites ----------- Power Ion Engine Engine Ion Engine Propulsion Light Treads Treads Light Treads Wheel Wheel Utility Large Storage Unit Device Improved Heat Sink Storage Large Storage Unit Protection Makeshift Armor Plating Weapon Particle Gun Energy Gun Particle Gun Ballistic Gun Barrage Gun Ballistic Cannon Light Cannon Launcher Grenade Launcher Build | -11 -10 -10 -10 -7 ------- Run | Jun Mat Min Sub Rec Slots Evolved . | . . . . . Power . | . . . . . Propulsion . | . . . . . Utility . | . . . . . Weapon . | . . . . . Parts Attached 44 | 6 14 . 22 2 Power 6 | 1 4 . 1 . Engine 6 | 1 4 . 1 . Core . | . . . . . Reactor . | . . . . . Propulsion 10 | 2 4 . 3 1 Treads 9 | 2 4 . 2 1 Leg . | . . . . . Wheel 1 | . . . 1 . Hover . | . . . . . Flight . | . . . . . Utility 11 | 1 3 . 6 1 Device 7 | . 1 . 6 . Storage 3 | 1 2 . . . Processor . | . . . . . Hackware . | . . . . . Protection 1 | . . . . 1 Artifact . | . . . . . Weapon 17 | 2 3 . 12 . Energy Gun 4 | . 1 . 3 . Energy Cannon . | . . . . . Ballistic Gun 8 | 2 1 . 5 . Ballistic Cannon 3 | . 1 . 2 . Launcher 2 | . . . 2 . Special Weapon . | . . . . . Impact Weapon . | . . . . . Slashing Weapon . | . . . . . Piercing Weapon . | . . . . . Special Melee Weapon . | . . . . . Unidentified Prototypes 1 | . . . 1 . Parts Lost 3 | . . . 3 . Power . | . . . . . Propulsion 2 | . . . 2 . Utility 1 | . . . 1 . Weapon . | . . . . . Highest Loss Streak 1 | . . . 1 . To Critical Strikes . | . . . . . Average Slot Usage (%) 99 | . 98 100 99 100 Engine 14 | . 14 14 14 14 Treads 27 | . 28 28 27 28 Device 13 | . 13 14 14 14 Storage 14 | . 14 14 14 14 Energy Gun 9 | . 12 14 7 14 Ballistic Gun 12 | . 12 . 15 14 Ballistic Cannon 4 | . 2 14 3 . Naked Turns . | . . . . . Heaviest Build 33 | 13 32 32 33 32 Greatest Support 48 | 40 40 40 40 48 Greatest Overweight (x) 3 | . . . 3 . Average Overweight (x) . | . . . . . Largest Inventory Capacity 15 | 8 15 15 15 15 Average Capacity 14 | 7 14 15 15 15 Most Carried 15 | 2 15 15 15 15 Average Carried 14 | 1 12 15 14 14 Final Capacity 15 | 8 15 15 15 15 Final Carried 15 | 2 15 15 15 15 Class Distribution -------------------- 100% | Mutant Dominant Class ---------------- Mutant | -10/Materials Mutant | -10/Mines Mutant | -10/Subcaves Mutant | -7/Recycling Resources | -11 -10 -10 -10 -7 ----------- Run | Jun Mat Min Sub Rec Matter Collected 1414 | 239 484 48 633 10 Remotely . | . . . . . Salvage Created 981 | . 840 55 86 . Parts 74 | . 52 12 10 . Haulers Intercepted 2 | . 2 . . . Recyclers Shooed 1 | . 1 . . . Parts Field Recycled . | . . . . . Retrieved Matter . | . . . . . Parts Self-Destructed 15 | . . . 15 . Prevented . | . . . . . Kills | -11 -10 -10 -10 -7 ------- Run | Jun Mat Min Sub Rec Combat Hostiles Destroyed 22 | . 13 3 6 . Guns 17 | . 13 3 1 . AOE 5 | . . . 5 . Classes Destroyed 10 | . 7 1 2 . Worker 3 | . 3 . . . Builder 4 | . 3 1 . . Tunneler 1 | . 1 . . . Hauler 2 | . 2 . . . Mechanic 1 | . 1 . . . Watcher 2 | . 2 . . . Swarmer 7 | . . 3 4 . Grunt 13 | . 13 . . . Cobbler 1 | . . . 1 . Subdweller 2 | . . . 2 . Best Kill Streak 4 | . 3 3 4 . Combat Bots Only 4 | . 2 3 4 . Max Kills in Single Turn 3 | . 1 1 3 . Gunslinging . | . . . . . Exploded 3 | . . . 3 . Melee . | . . . . . Uniques/NPCs Destroyed . | . . . . . Combat | -11 -10 -10 -10 -7 -------- Run | Jun Mat Min Sub Rec Damage Taken 1563 | . 560 165 607 231 Core 253 | . 81 68 48 56 Absorbed by Shields . | . . . . . Core Remaining (%) 100 | 100 . . . . Volleys Fired 162 | . 77 6 74 5 Largest 2 | . 2 2 2 2 Hottest 100 | . 100 100 60 85 Shots Fired 266 | . 153 14 89 10 Gun 226 | . 150 7 59 10 Cannon 31 | . 3 7 21 . Launcher 9 | . . . 9 . Special . | . . . . . Kinetic 159 | . 86 7 61 5 Thermal 98 | . 67 7 19 5 Explosive 9 | . . . 9 . Electromagnetic . | . . . . . Robot Hit Streak 22 | . 22 5 15 6 Robot Miss Streak 5 | . 5 1 2 1 Penetration Max . | . . . . . Secondary Targets . | . . . . . Shots Hit Robots 146 | . 104 7 27 8 Core Hits 51 | . 37 4 9 1 Critical Kills 1 | . 1 . . . Critical Parts Destroyed 1 | . 1 . . . Critical Strikes 7 | . 7 . . . Burn 5 | . 5 . . . Destroy 2 | . 2 . . . Melee Attacks . | . . . . . Impact . | . . . . . Slashing . | . . . . . Piercing . | . . . . . Sneak Attacks . | . . . . . Combat Hostiles . | . . . . . Follow-up Attacks . | . . . . . Damage Inflicted 2502 | . 1466 119 763 154 Guns 2073 | . 1413 64 442 154 Cannons 108 | . 53 55 . . Explosions 321 | . . . 321 . Melee . | . . . . . Ramming . | . . . . . Kinetic 1193 | . 668 55 422 48 Thermal 988 | . 798 64 20 106 Explosive 321 | . . . 321 . Electromagnetic . | . . . . . Impact . | . . . . . Slashing . | . . . . . Piercing . | . . . . . Highest Corruption 1 | . . 1 1 1 Average Corruption 1 | . . 1 1 1 Corruption Purged . | . . . . . Corruption Blocked . | . . . . . Effects 43 | . . 5 36 2 Message Errors 7 | . . . 7 . Matter Fused 17 | . . 1 15 1 Heat Flow Errors 2 | . . . 2 . Energy Discharges 6 | . . 2 3 1 Data Loss (minor) 2 | . . . 2 . Data Loss (major) 4 | . . . 4 . Misfires 4 | . . 2 2 . Alerts 1 | . . . 1 . Overload Shots . | . . . . . Overflow Damage 36 | . . . 36 . Projectiles . | . . . . . Explosions 36 | . . . 36 . Melee . | . . . . . Knockbacks 1 | . 1 . . . Impact . | . . . . . Kinetic 1 | . 1 . . . Secondary . | . . . . . Self-Inflicted Damage . | . . . . . Shots . | . . . . . Rammed . | . . . . . Targets Rammed . | . . . . . Kicked . | . . . . . Crushed . | . . . . . Highest Temperature 172 | . 36 . 113 172 Average Temperature 43 | . 11 . 54 83 Received Heat Transfer 606 | . 393 27 126 60 Siege Activations . | . . . . . Robots Corrupted . | . . . . . Combat Hostiles . | . . . . . Parts Fried . | . . . . . Impact Corruptions . | . . . . . Robots Melted . | . . . . . Combat Hostiles . | . . . . . Parts Melted 3 | . 3 . . . Heat Transferred 2555 | . 2257 148 25 125 Parts Sabotaged . | . . . . . Parts Stolen . | . . . . . Parts Stripped . | . . . . . Power Chain Reactions . | . . . . . Missiles Intercepted . | . . . . . Alert | -11 -10 -10 -10 -7 ------- Run | Jun Mat Min Sub Rec Peak Influence 210 | . 210 132 . 160 Initial 132 | . . 52 . 132 Average 75 | . 73 67 . 144 Maximum Alert Level 1 | . 1 . . . Low Security (%) 98 | 100 98 100 . 100 Level 1 1 | . 1 . . . Level 2 . | . . . . . Level 3 . | . . . . . Level 4 . | . . . . . Level 5 . | . . . . . High Security . | . . . . . Max Security . | . . . . . Squads Dispatched 4 | . 4 . . . Investigation 1 | . 1 . . . Extermination . | . . . . . Reinforcement 3 | . 3 . . . Assault . | . . . . . Garrison . | . . . . . Intercept . | . . . . . Searches Triggered . | . . . . . Construction Impeded . | . . . . . Haulers Reinforced . | . . . . . Active Scanning Responses . | . . . . . Cargo Convoy Interrupts . | . . . . . Stealth | -11 -10 -10 -10 -7 --------- Run | Jun Mat Min Sub Rec Distress Signals 1 | . 1 . . . Communications Jammed . | . . . . . Distress Signals . | . . . . . Times Spotted 53 | . 24 5 22 2 Peak Tracking Total 6 | . 4 2 6 1 Tactical Retreats 3 | . 1 1 1 . Traps | -11 -10 -10 -10 -7 ------- Run | Jun Mat Min Sub Rec Traps Triggered 2 | . 1 . 1 . Indirectly . | . . . . . Trap Hack Attempts . | . . . . . Triggered . | . . . . . Disarmed . | . . . . . Reprogrammed . | . . . . . Reused . | . . . . . Traps Extracted . | . . . . . Installed 1 | . . . 1 . Triggered 2 | . . 2 . . Machines | -11 -10 -10 -10 -7 ---------- Run | Jun Mat Min Sub Rec Machines Disabled 3 | . . . 3 . Max in Single Turn 1 | . . . 1 . Machines Repaired . | . . . . . Machines Sabotaged . | . . . . . Overloaded Fab Kills . | . . . . . Hacking | -11 -10 -10 -10 -7 --------- Run | Jun Mat Min Sub Rec Machines Accessed 9 | . 6 1 1 1 Terminals 8 | . 6 1 . 1 Fabricators . | . . . . . Repair Stations . | . . . . . Recycling Units . | . . . . . Scanalyzers . | . . . . . Garrison Access . | . . . . . Total Hacks 26 | . 19 2 1 4 Successful 14 | . 11 1 1 1 Failed 12 | . 8 1 . 3 Catastrophic 4 | . 2 . . 2 Database Lockouts . | . . . . . Manual 22 | . 18 . . 4 Terminals 25 | . 19 2 . 4 Fabricators . | . . . . . Repair Stations . | . . . . . Recycling Units . | . . . . . Scanalyzers . | . . . . . Garrison Access . | . . . . . Terminal Hacks 8 | . 6 1 1 . Record 1 | . . . 1 . Alert Level 1 | . 1 . . . Unreport Threat 1 | . 1 . . . Locate Traps 3 | . 3 . . . Zone Layout 2 | . 1 1 . . Fabricator Hacks . | . . . . . Repair Station Hacks . | . . . . . Recycling Unit Hacks . | . . . . . Scanalyzer . | . . . . . Garrison Access Hacks . | . . . . . Unauthorized Hacks 6 | . 5 . . 1 Terminals 6 | . 5 . . 1 Botnet 6 | . 5 . . 1 Fabricators . | . . . . . Repair Stations . | . . . . . Recycling Units . | . . . . . Scanalyzers . | . . . . . Garrison Access . | . . . . . Data Cores Recovered . | . . . . . Used . | . . . . . Hacking Detections 8 | . 6 1 . 1 Full Trace Events 1 | . . . . 1 Feedback Events . | . . . . . Feedback Blocked . | . . . . . Robot Schematics Acquired . | . . . . . Robots Built . | . . . . . Authchips . | . . . . . Time . | . . . . . Total Robot Build Rating . | . . . . . Part Schematics Acquired . | . . . . . Parts Built . | . . . . . Authchips . | . . . . . Time . | . . . . . Total Part Build Rating . | . . . . . Parts Repaired . | . . . . . Time . | . . . . . Parts Recycled . | . . . . . Recycled Matter . | . . . . . Retrieved Matter . | . . . . . Retrieved Components . | . . . . . Parts Scanalyzed . | . . . . . Part Schematics Acquired . | . . . . . Parts Damaged . | . . . . . Bothacking | -11 -10 -10 -10 -7 ------------ Run | Jun Mat Min Sub Rec Used RIF Installer . | . . . . . Robots Hacked . | . . . . . Non-combat . | . . . . . Combat . | . . . . . Robot Hacks Applied . | . . . . . Relay Couplers Released . | . . . . . Fabnet Peak Effective % . | . . . . . Robots Rewired . | . . . . . Allies Hacked . | . . . . . Hacks Repelled . | . . . . . Allies | -11 -10 -10 -10 -7 -------- Run | Jun Mat Min Sub Rec Total Allies 10 | . . . 10 . Largest Group 6 | . . . 6 3 Highest-Rated Group 114 | . . . 114 55 Highest-Rated Ally 19 | . . . 19 19 Total Orders . | . . . . . Ally Attacks 50 | . . . 31 19 Total Damage 754 | . . . 432 322 Kills 5 | . . . 4 1 Allies Corrupted . | . . . . . Allies Melted . | . . . . . Intel | -11 -10 -10 -10 -7 ------- Run | Jun Mat Min Sub Rec Robot Analysis Total . | . . . . . Derelict Logs Recovered 2 | . . . 2 . Drone Launches . | . . . . . Drone Recoveries . | . . . . . Exploration | -11 -10 -10 -10 -7 ------------- Run | Jun Mat Min Sub Rec Turns Passed 7273 | 50 1908 903 4207 205 Spaces Moved 4068 | 26 949 543 2444 106 Core 1 | 1 . . . . Treads 3935 | 25 949 543 2312 106 Legs . | . . . . . Wheels 132 | . . . 132 . Hover . | . . . . . Flight . | . . . . . Fastest Speed 50 | 50 160 160 125 160 Average Speed 159 | 155 160 160 158 160 Slowest Speed 240 | 160 160 160 240 160 Overloaded Moves . | . . . . . Propulsion Burnouts . | . . . . . Robots Hopped . | . . . . . Cave-ins Triggered . | . . . . . Exploration Rate (%) 63 | 3 95 91 96 32 Regions Visited 4 Branch Regions 3 Pre-discovered Areas 1 | . . . 1 . Known Exits Taken . | . . . . . Unknown Exits Taken 4 | 1 1 1 1 . Scrap Searched 9 | . . 1 8 . Spaces Dug 1 | . . . 1 . Terrain Destroyed 40 | . . . 40 . Melee . | . . . . . Projectile 1 | . . . 1 . AOE 39 | . . . 39 . Terrain Rammed . | . . . . . Walls Destroyed . | . . . . . Machines Disabled . | . . . . . Actions | -11 -10 -10 -10 -7 --------- Run | Jun Mat Min Sub Rec Total 4622 | 33 1203 566 2687 133 Wait 268 | . 121 16 117 14 Move 4064 | 25 948 542 2443 106 Hop . | . . . . . Pick Up 38 | 2 21 1 12 2 Fast Attach 16 | 6 3 . 7 . Attach 5 | . . . 5 . Detach 1 | . 1 . . . Swap 23 | . 11 . 10 2 Drop 44 | . 21 1 18 4 Fire 162 | . 77 6 74 5 Melee . | . . . . . Ram . | . . . . . Kick . | . . . . . Crush . | . . . . . Escape Stasis . | . . . . . Rewire . | . . . . . Trap 1 | . . . 1 . Miscellaneous . | . . . . . Route ------- -11/Junkyard -10/Materials (discovered 5 exits: [*Mat x3] / *Min / *Sub) -10/Mines (discovered 4 exits: [*Mat x2] / [Exi] / *Sub) -10/Subcaves (discovered 3 exits: [*Mat x2] / *Rec) -7/Recycling History --------- Turn | Location | Event 24 | -11/Junkyard | Discovered new exit (range 15) 51 | -11/Junkyard | Entered Materials 309 | -10/Materials | Build established: Mutant 343 | -10/Materials | Discovered new exit (range 9) 442 | -10/Materials | Discovered new exit (range 8) 619 | -10/Materials | Discovered new exit (range 9) 765 | -10/Materials | Discovered new exit (range 16) 1713 | -10/Materials | Discovered new exit (range 14) 1959 | -10/Materials | Entered Mines 1961 | -10/Mines | Discovered new exit (range 10) 2074 | -10/Mines | Discovered new exit (range 12) 2167 | -10/Mines | Discovered new exit (range 15) 2221 | -10/Mines | Discovered new exit (range 6) 2431 | -10/Mines | Core integrity fell below 50% 2862 | -10/Mines | Entered Subcaves 2885 | -10/Subcaves | Discovered new exit (range 8) 2888 | -10/Subcaves | Shifting Twisted Machinery released Barrage Gun 2890 | -10/Subcaves | Shifting Twisted Machinery released Sub. Machine Gun 3014 | -10/Subcaves | Shifting Twisted Machinery released Hvy. Riot Gun 3016 | -10/Subcaves | Shifting Twisted Machinery released Sub. Machine Gun 3343 | -10/Subcaves | Ambushed by angry Subdweller bent on revenge 3618 | -10/Subcaves | Visited Clippyterm 4174 | -10/Subcaves | A swath of the cavern ceiling suddenly collapsed 4321 | -10/Subcaves | Shifting Twisted Machinery released Sub. Laser 4405 | -10/Subcaves | Visited triangular shrine 4415 | -10/Subcaves | Found Prototype Device 4415 | -10/Subcaves | Identified V3-11A's Pendant 4420 | -10/Subcaves | Befriended Subdweller 4435 | -10/Subcaves | Befriended Subdweller 4654 | -10/Subcaves | A swath of the cavern ceiling suddenly collapsed 4815 | -10/Subcaves | Befriended Subdweller 4840 | -10/Subcaves | Discovered new exit (range 12) 4846 | -10/Subcaves | Shifting Twisted Machinery released Sub. Laser 5060 | -10/Subcaves | Learned location of Zion (-7) 5060 | -10/Subcaves | Met a Zionite searching for "candidates" 5125 | -10/Subcaves | Discovered new exit (range 15) 5230 | -10/Subcaves | Befriended Subdweller 5235 | -10/Subcaves | Befriended Subdweller 5270 | -10/Subcaves | Befriended Subdweller 5489 | -10/Subcaves | Learned Materials trap positions 5585 | -10/Subcaves | Befriended Subdweller 5585 | -10/Subcaves | Befriended Subdweller 5760 | -10/Subcaves | Disturbed a concealed Subdweller 5760 | -10/Subcaves | Befriended Subdweller 5988 | -10/Subcaves | Disturbed a concealed Subdweller 5990 | -10/Subcaves | Befriended Subdweller 6160 | -10/Subcaves | Learned 2 Materials zone layouts 7069 | -10/Subcaves | Entered Recycling 7069 | -7/Recycling | Accompanied by 3 allies 7070 | -7/Recycling | Found Scrap Engine 7240 | -7/Recycling | Core integrity fell below 20% 7274 | -7/Recycling | Destroyed by Y-54 Guardian with Flak Gun Last Messages --------------- 07141_ Y-54 Guardian destroyed. 07153_ Dropped Assault Rifle. 07153_ R-06 Scavenger collects Flak Gun. 07155_ Acquired Gatling Laser. 07156_ R-06 Scavenger collects Assault Rifle. 07237_ Y-54 Guardian springs to life. 07239_ Connecting with Terminal... 07239_ Current location identified: Recycling >>Trojan(Botnet) Trojan loaded successfully. Testing... Terminal linked with 0 systems. Awaiting botnet instructions. 07245_ 5K-G9G(R) destroyed. 07247_ V3-11A affixes Scrap Shield Fragment to Scrap Shield. 07263_ XA-NDC(R) affixes Scrap Shield Fragment to Scrap Shield. 07264_ Y-54 Guardian suffers critical hit (Destroy). 07266_ XA-NDC(R) destroyed. 07272_ R-06 Scavenger collects Disposable Heat Sink. 07274_ R-06 Scavenger collects Sub. Machine Gun. Map ----- +----------------------------------------------------+ | ########## ########## # ##? | | # ##? | | # ##? | | % # ##? | | ## ####### ######!!!##### ![]##? | | ## ######## #######! !############? | | ##/######## ###??#######?#########? | | #### ##???#######??????????? | | #### # ????????????????????? | | #### # ????????????????????? | | #### + ????????????????????? | | ##+##+##### # ????????????????????? | | # # ????????????????????? | | # # ????????????????????? | | # # ????????????????????? | | ## ############ ????????????????????? | | ## #############????????????????????? | | ## #################????????????????? | | !!###############????????????????? | | !!## ????????????????? | | !!## """ """ """ ##??????????????? | | #### """ """ """ ##??????????????? | | #### """ """ """ ##########??????? | | #### ##########??????? | | ########/######+#### ##??????? | | @ ##??????? | | r u YT ##??????? | | &&r ##??????? | | #####+##############%& ##??????? | | " ### #####r& ###??????? | | " ### """ """ ##### ###??????? | | " ### """ """ " ? ##?## ##???????? | | " ### """ """ "??????## ##???????? | | " ### ""?????## ##??????? | | ?#############?????## u###??????? | | ?#############?????## ###??????? | | " ???????????????????## ???????? | | " ???????????????????## ????????? | | " ??????????????????? ???????? | | " ???????????????????###+###???????? | | ?????????????????????? ???????? | | ????????????????????????????????????? | | ????????????????????????????????????? | | ????????????????????????????????????? | | ????????????????????????????????????? | | ????????????????????????????????????? | | ????????????????????????????????????? | | ????????????????????????????????????? | | ????????????????????????????????????? | | ????????????????????????????????????? | +----------------------------------------------------+ Best States ------------- Heat Dissipation 39 Energy Generation 10 Energy Capacity 250 Matter Stores 300 Matter Capacity 300 Sight Range 16 Terrain Scan Density 10 Evasion (%) 40 Recoil Reduction 2 Item Schematics ----------------- None Robot Schematics ------------------ None Fabricated ------------ Nothing Alien Tech Used ----------------- None Achievements -------------- None Challenges ------------ None Game ------ Seed RelayBurstCoupler Manual? 0 Play Time 00:24:46 Cumulative 1273.5 hours Start 2023.12.05 @ 22:08:06 End 2023.12.05 @ 22:32:00 Sessions 1 Manual Loads 0 Difficulty Rogue Special Mode None Game No. 922 Rogue 882 Adventurer 40 Explorer 0 Win Type - Total 150 Types 72/7/46/2/1/4/15/2/1 Lore% 93 Gallery% 96 Achievement% 83 Wizard Run 0 Options --------- ASCII 0 Keyboard 0 Movement Numpad Keybinds 0 Fullscreen 0 Font 20/Terminus Map View 76x50 Tactical HUD 1 Map Filters NONE Filters NONE Steam 1 RUN: 09395d6d-f9d0-4859-9a34-e9d6ddd64d07